Cogmind - Beta 9.3 @@@ ROGUE MODE // 2019.12.31 @ 09:20:36 // Winter2019/RPGLIKE Player: BadAss McGhee Result: Destroyed by G-34 Mercenary with Small Laser Performance ------------- Evolutions (1) 500 Regions Visited (2) 400 Robots Destroyed (9) 45 Value Destroyed (287) 287 Prototype IDs (2) 40 Alien Tech Used (0) 0 Bonus (0) 0 TOTAL SCORE: 1272 Bonus ------- None Cogmind --------- Core Integrity 0/600 Matter 270/300 Energy 313/315 System Corruption 0% Temperature Cool (484) Movement Walking (120) Location -9/Materials Parts ------- > --- POWER (1) -------- Improved Ion Engine > --- PROPULSION (2) --- Aluminum Leg > --- UTILITY (3) ------ Sensor Array Signal Interpreter Light Armor Plating > --- WEAPON (2) ------- Medium Laser > --- INVENTORY (2) ---- (None) Peak State ------------ > --- POWER ------------ Improved Ion Engine > --- PROPULSION ------- Hover Unit Hover Unit > --- UTILITY ---------- Heat Sink Sensor Array Signal Interpreter > --- WEAPON ----------- Medium Laser Beam Rifle > --- INVENTORY -------- (None) [Rating: 10] Favorites ----------- Power Ion Engine Engine Ion Engine Propulsion Wheel Leg Aluminum Leg Wheel Wheel Hover Unit Hover Unit Utility Signal Interpreter Device Sensor Array Processor Signal Interpreter Protection Light Armor Plating Weapon Medium Laser Energy Gun Medium Laser Ballistic Gun Assault Rifle Build | -11 -10 -9 ------- Run | Scr Mat Mat Slots Evolved 4 | 3 . 1 Power . | . . . Propulsion 1 | 1 . . Utility 2 | 1 . 1 Weapon 1 | 1 . . Parts Attached 17 | 5 4 8 Power 2 | 1 . 1 Engine 2 | 1 . 1 Core . | . . . Reactor . | . . . Propulsion 5 | 2 . 3 Treads . | . . . Leg 1 | . . 1 Wheel 2 | 2 . . Hover 2 | . . 2 Flight . | . . . Utility 6 | . 3 3 Device 3 | . 1 2 Storage . | . . . Processor 2 | . 2 . Hackware . | . . . Protection 1 | . . 1 Artifact . | . . . Weapon 4 | 2 1 1 Energy Gun 2 | . 1 1 Energy Cannon . | . . . Ballistic Gun 2 | 2 . . Ballistic Cannon . | . . . Launcher . | . . . Special Weapon . | . . . Impact Weapon . | . . . Slashing Weapon . | . . . Piercing Weapon . | . . . Special Melee Weapon . | . . . Unidentified Prototypes . | . . . Parts Lost 2 | . . 2 Power . | . . . Propulsion 2 | . . 2 Utility . | . . . Weapon . | . . . Highest Loss Streak 2 | . . 2 Average Slot Usage (%) 95 | . 96 91 Engine 13 | . 14 12 Wheel 22 | . 28 7 Hover 4 | . . 16 Device 13 | . 10 20 Processor 13 | . 14 12 Energy Gun 12 | . 11 14 Ballistic Gun 13 | . 16 6 Naked Turns . | . . . Heaviest Build 14 | 8 10 14 Greatest Support 25 | 20 20 25 Greatest Overweight (x) 1 | . . 1 Average Overweight (x) . | . . . Largest Inventory Capacity 2 | 2 2 2 Average Capacity 1 | 1 2 2 Most Carried 2 | . 2 2 Average Carried 1 | . 1 . Final Capacity 2 | 2 2 2 Final Carried 2 | . 2 . Class Distribution -------------------- 82% | Mutant 10% | Scavenger-Scout 6% | Scavenger-Mutant Dominant Class ---------------- Mutant | -10/Materials Scavenger-Scout | -9/Materials Resources | -11 -10 -9 ----------- Run | Scr Mat Mat Matter Collected 362 | 250 49 63 Remotely . | . . . Salvage Created 203 | . 49 154 Parts 30 | . 8 22 Haulers Intercepted . | . . . Recyclers Shooed . | . . . Parts Field Recycled . | . . . Retrieved Matter . | . . . Parts Self-Destructed . | . . . Prevented . | . . . Kills | -11 -10 -9 ------- Run | Scr Mat Mat Combat Hostiles Destroyed 6 | . . 6 Guns 6 | . . 6 Classes Destroyed 4 | . 1 3 Watcher 3 | . 2 1 Grunt 3 | . . 3 Duelist 1 | . . 1 Sentry 2 | . . 2 Best Kill Streak 3 | . 1 3 Combat Bots Only 3 | . . 3 Max Kills in Single Turn 1 | . 1 1 Gunslinging . | . . . Exploded . | . . . Melee . | . . . Uniques/NPCs Destroyed . | . . . Combat | -11 -10 -9 -------- Run | Scr Mat Mat Damage Taken 813 | . 13 800 Core 675 | . 10 665 Absorbed by Shields . | . . . Redirected to Core 469 | . 10 459 Core Remaining (%) 99 | 100 98 . Volleys Fired 42 | . 6 36 Largest 2 | . 2 2 Hottest 70 | . 50 70 Shots Fired 51 | . 11 40 Gun 51 | . 11 40 Cannon . | . . . Launcher . | . . . Special . | . . . Kinetic 14 | . 10 4 Thermal 37 | . 1 36 Explosive . | . . . Electromagnetic . | . . . Robot Hit Streak 7 | . 3 7 Robot Miss Streak 2 | . 1 2 Penetration Max . | . . . Secondary Targets . | . . . Shots Hit Robots 35 | . 7 28 Core Hits 17 | . 3 14 Critical Hits . | . . . Critical Kills . | . . . Critical Parts Destroyed . | . . . Melee Attacks . | . . . Impact . | . . . Slashing . | . . . Piercing . | . . . Sneak Attacks . | . . . Combat Hostiles . | . . . Follow-up Attacks . | . . . Damage Inflicted 411 | . 37 374 Guns 411 | . 37 374 Cannons . | . . . Explosions . | . . . Melee . | . . . Ramming . | . . . Kinetic 35 | . 25 10 Thermal 376 | . 12 364 Explosive . | . . . Electromagnetic . | . . . Impact . | . . . Slashing . | . . . Piercing . | . . . Highest Corruption . | . . . Average Corruption . | . . . Corruption Purged . | . . . Overload Shots . | . . . Overflow Damage . | . . . Projectiles . | . . . Explosions . | . . . Melee . | . . . Knockbacks . | . . . Impact . | . . . Kinetic . | . . . Secondary . | . . . Self-Inflicted Damage . | . . . Shots . | . . . Rammed . | . . . Targets Rammed . | . . . Kicked . | . . . Crushed . | . . . Highest Temperature 527 | . 10 527 Average Temperature 236 | . 7 241 Received Heat Transfer 303 | . . 303 Effects 4 | . . 4 Shutdowns 2 | . . 2 Matter Decay 2 | . . 2 Siege Activations . | . . . Robots Corrupted . | . . . Combat Hostiles . | . . . Parts Fried . | . . . Impact Corruptions . | . . . Robots Melted . | . . . Combat Hostiles . | . . . Parts Melted 1 | . . 1 Heat Transferred 1110 | . 37 1073 Parts Sabotaged . | . . . Parts Stolen . | . . . Parts Stripped . | . . . Power Chain Reactions . | . . . Missiles Intercepted . | . . . Alert | -11 -10 -9 ------- Run | Scr Mat Mat Peak Influence 202 | . 29 202 Average Influence 31 | . 16 79 Maximum Alert Level 1 | . . 1 Low Security (%) 98 | 100 100 93 Level 1 1 | . . 6 Level 2 . | . . . Level 3 . | . . . Level 4 . | . . . Level 5 . | . . . High Security . | . . . Max Security . | . . . Squads Dispatched 2 | . 1 1 Investigation . | . . . Extermination . | . . . Reinforcement 2 | . 1 1 Assault . | . . . Garrison . | . . . Intercept . | . . . Construction Impeded . | . . . Haulers Reinforced . | . . . Stealth | -11 -10 -9 --------- Run | Scr Mat Mat Distress Signals 2 | . . 2 Communications Jammed . | . . . Distress Signals . | . . . Times Spotted 21 | . 3 18 Peak Tracking Total 8 | . 2 8 Tactical Retreats . | . . . Traps | -11 -10 -9 ------- Run | Scr Mat Mat Traps Triggered 1 | . 1 . Indirectly . | . . . Trap Hack Attempts . | . . . Triggered . | . . . Disarmed . | . . . Reprogrammed . | . . . Reused . | . . . Traps Extracted . | . . . Installed . | . . . Triggered . | . . . Machines | -11 -10 -9 ---------- Run | Scr Mat Mat Machines Disabled . | . . . Max in Single Turn . | . . . Machines Sabotaged . | . . . Garrisons Compromised . | . . . Overloaded Fab Kills . | . . . Fab Network Shutdowns . | . . . Hacking | -11 -10 -9 --------- Run | Scr Mat Mat Machines Accessed 2 | . 2 . Terminals 1 | . 1 . Fabricators . | . . . Repair Stations . | . . . Recycling Units 1 | . 1 . Scanalyzers . | . . . Garrison Access . | . . . Total Hacks 3 | . 3 . Successful 3 | . 3 . Failed . | . . . Catastrophic . | . . . Database Lockouts . | . . . Manual . | . . . Terminals 1 | . 1 . Fabricators . | . . . Repair Stations . | . . . Recycling Units 2 | . 2 . Scanalyzers . | . . . Garrison Access . | . . . Terminal Hacks 1 | . 1 . Prototype ID Bank 1 | . 1 . Fabricator Hacks . | . . . Repair Station Hacks . | . . . Recycling Unit Hacks 2 | . 2 . Process 1 | . 1 . Report Inventory 1 | . 1 . Scanalyzer . | . . . Garrison Access Hacks . | . . . Unauthorized Hacks . | . . . Terminals . | . . . Fabricators . | . . . Repair Stations . | . . . Recycling Units . | . . . Scanalyzers . | . . . Garrison Access . | . . . Data Cores Recovered . | . . . Used . | . . . Hacking Detections 1 | . 1 . Full Trace Events . | . . . Feedback Events . | . . . Feedback Blocked . | . . . Robot Schematics Acquired . | . . . Robots Built . | . . . Matter . | . . . Time . | . . . Total Robot Build Rating . | . . . Part Schematics Acquired . | . . . Parts Built . | . . . Matter . | . . . Time . | . . . Total Part Build Rating . | . . . Parts Repaired . | . . . Time . | . . . Parts Recycled . | . . . Recycled Matter 1 | . 1 . Retrieved Matter . | . . . Retrieved Components . | . . . Parts Scanalyzed . | . . . Part Schematics Acquired . | . . . Parts Damaged . | . . . Bothacking | -11 -10 -9 ------------ Run | Scr Mat Mat Used RIF Installer . | . . . Robots Hacked . | . . . Non-combat . | . . . Combat . | . . . Robot Hacks Applied . | . . . Relay Couplers Released . | . . . Robots Rewired . | . . . Allies Hacked . | . . . Hacks Repelled . | . . . Allies | -11 -10 -9 -------- Run | Scr Mat Mat Total Allies . | . . . Largest Group . | . . . Highest-Rated Group . | . . . Highest-Rated Ally . | . . . Total Orders . | . . . Ally Attacks . | . . . Total Damage . | . . . Kills . | . . . Allies Corrupted . | . . . Allies Melted . | . . . Intel | -11 -10 -9 ------- Run | Scr Mat Mat Robot Analysis Total . | . . . Derelict Logs Recovered . | . . . Drone Launches . | . . . Drone Recoveries . | . . . Exploration | -11 -10 -9 ------------- Run | Scr Mat Mat Turns Passed 728 | 36 503 189 Spaces Moved 608 | 37 454 117 Core 3 | 3 . . Treads . | . . . Legs 2 | . . 2 Wheels 532 | 34 454 44 Hover 71 | . . 71 Flight . | . . . Fastest Speed 50 | 50 80 56 Average Speed 77 | 77 80 67 Slowest Speed 120 | 80 80 120 Overloaded Moves . | . . . Propulsion Burnouts . | . . . Robots Hopped . | . . . Cave-ins Triggered . | . . . Exploration Rate (%) 25 | 4 56 16 Regions Visited 2 Branch Regions . Pre-discovered Areas . | . . . Known Exits Taken 1 | . 1 . Unknown Exits Taken 1 | 1 . . Scrap Searched . | . . . Spaces Dug . | . . . Terrain Destroyed . | . . . Melee . | . . . Projectile . | . . . AOE . | . . . Actions | -11 -10 -9 --------- Run | Scr Mat Mat Total 810 | 41 582 187 Wait 129 | . 114 15 Move 606 | 36 453 117 Hop . | . . . Pick Up 4 | . 3 1 Fast Attach 14 | 5 3 6 Attach . | . . . Detach . | . . . Swap 3 | . 1 2 Drop 9 | . 2 7 Fire 42 | . 6 36 Melee . | . . . Ram . | . . . Kick . | . . . Crush . | . . . Escape Stasis . | . . . Rewire . | . . . Trap . | . . . Miscellaneous 3 | . . 3 Route ------- -11/Scrapyard -10/Materials (discovered 2 exits: *Mat / [*Min]) -9/Materials (discovered 1 exit: [*Sto]) History --------- Turn | Location | Event 8 | -11/Scrapyard | Upgraded with Propulsion slot (x1) 8 | -11/Scrapyard | Upgraded with Utility slot (x1) 8 | -11/Scrapyard | Upgraded with Weapon slot (x1) 11 | -11/Scrapyard | Discovered new exit (range 15) 37 | -11/Scrapyard | Entered Materials 171 | -10/Materials | Discovered new exit (range 13) 314 | -10/Materials | Build established: Mutant 328 | -10/Materials | Discovered new exit (range 12) 539 | -10/Materials | Identified exit to Materials 540 | -10/Materials | Entered another Materials area 542 | -9/Materials | Reached level 2 545 | -9/Materials | Upgraded with Utility slot (x1) 686 | -9/Materials | Discovered new exit (range 4) 707 | -9/Materials | Core integrity fell below 50% 726 | -9/Materials | Core integrity fell below 20% 729 | -9/Materials | Destroyed by G-34 Mercenary with Small Laser Last Messages --------------- 00709_ Power failure, Imp. Ion Engine shutdown. 00710_ Hover Unit destroyed. 00714_ W-16 Scout sends out distress signal. 00714_ G-34 Mercenary destroyed. 00716_ Overheating: Matter decay (-31). 00716_ K-01 Serf collects debris. 00717_ Dropped Terrain Scanner. 00718_ Overheating: Matter decay (-59). 00718_ Acquired Lgt. Armor Plating. 00719_ K-01 Serf cleans the Fusion Modulator. 00722_ Acquired Aluminum Leg. 00725_ Fusion Modulator explodes. 00725_ S-10 Pest destroyed. 00725_ Repair Station disabled. 00725_ S-10 Pest destroyed. 00725_ G-34 Mercenary destroyed. 00725_ K-01 Serf collects debris. 00727_ Hover Unit destroyed. 00728_ Power failure, Imp. Ion Engine shutdown. 00728_ K-01 Serf collects debris. Map ----- +----------------------------------------------------+ | ?????????????????# #### ? | | ?????######??????# ! ? | | ????##%%%%##?????##### #???????? | | ????#% %#?????????# " #???????? | | ????#% #?????????# """ #???????? | | ????# ########### """ #???????? | | ????# """ #???????? | | ????# ############# "" #???????? | | ????# #??# # """ #???????? | | ????# #??# """ # "" +???????? | | ????# #??#*"Y" # """ #???????? | | ????# #?## " " # " #???????? | | ????# #?#%[! !+% #???????? | | ????# #?## =! ==# #???????? | | ????# ##?# !! =# ????? | | ????# #?## # #### ???? | | ????# #?## #######+####???????? | | ????# #####+##+####??????????????????? | | ????# #?????????????????????? | | ????# #??#??????"?"?????????? | | ????# #####?????"???????????? | | ????# s #? ?????????????? | | ????#######+#;;;;;;;###?#??? ???????????? | | ?????????# !;;;# ##??????????????? | | ???????#?# " k ;s% ## ###?????????? | | ?????????# " @ =;g%* w #?????????? | | ?????????# " g=!<= + ! /????? | | ?????????# =m % # #????? | | ????????##[ =;== ######?? ??????? | | ??????#?## ;; a##??????????????? | | ?????????# ;; #???????????????? | | ?????????######;;;;;# #???????????????? | | ??????????????####### #???????????????? | | ???????????????????#? #???????????????? | | ???????? ???????????? #??? ???????????? | | ????????????????????? #???????????????? | | ???????????????#?#??? +???????????????? | | ????????????????????#? #???????????????? | | ?????????????????????? T???????????????? | | ?????????????????????? ???????????????? | | ?????????????????????? ?????????????????? | | ????????????????????????????????????????? | | ????????????????????????????????????????? | | ????????????????????????????????????????? | | ????????????????????????????????????????? | | ????????????????????????????????????????? | | ????????????????????????????????????????? | | ????????????????????????????????????????? | | ????????????????????????????????????????? | | ????????????????????????????????????????? | +----------------------------------------------------+ Best States ------------- Heat Dissipation 35 Energy Generation 17 Energy Capacity 315 Matter Stores 300 Matter Capacity 300 Sight Range 18 Robot Scan Range 10 Terrain Scan Range 14 Terrain Scan Density 10 Armor Coverage 150 Resistance: KI 5 Evasion (%) 53 Item Schematics ----------------- None Robot Schematics ------------------ None Fabricated ------------ Nothing Alien Tech Used ----------------- None Achievements -------------- None Challenges ------------ None RPGLIKE | -11 -10 -9 --------- Run | Scr Mat Mat Levels Raised 1 | . . 1 XP Earned 5405 | 3000 70 2335 XP Spent 4400 | 3000 . 1400 Upgrades 12 | 8 . 4 Propulsion Slot 1 | 1 . . Utility Slot 2 | 1 . 1 Weapon Slot 1 | 1 . . Energy Generation 1 | . . 1 Energy Storage 1 | . . 1 Mass Support 1 | . . 1 Inventory Capacity 2 | 2 . . Ranged Accuracy 1 | 1 . . KI Resistance % 1 | 1 . . KI Damage % 1 | 1 . . Protomatter Created 214 | . . 214 Integrity Restored 70 | . . 70 Core 70 | . . 70 Protomatter Decayed 95 | . . 95 Game ------ Seed AccelerationIonicArray Manual? 0 Play Time 00:16:36 Cumulative 62.7 hours Start 2019.12.31 @ 09:08:23 End 2019.12.31 @ 09:20:36 Sessions 1 Manual Loads 0 Difficulty Rogue Special Mode Winter2019/RPGLIKE Game No. 76 Rogue 76 Adventurer 0 Explorer 0 Win Type - Total 0 Types 0/0/0/0/0/0/0 Lore% 11 Gallery% 29 Achievement% 19 Wizard Run 0 Options --------- ASCII 0 Keyboard 0 Movement Mouse Keybinds 0 Fullscreen 1 Font 18/SmallcapsGlow Map View 76x50 Tactical HUD 1 Map Filters NONE Filters NONE Steam 1 RUN: 5d8ad80a-139d-4657-ae22-cc38e681faba